lending/lending_fUSD_20260330
["ID","MTS","AMOUNT","RATE_DAILY","PERIOD"]
[419096339,1774873840577,-237.20016515,0.00014663,2]
[419096340,1774873840587,-500.0,0.00014743,2]
[419096342,1774873840596,-500.0,0.00014743,2]
[419096343,1774873840606,-500.0,0.00014743,2]
[419096344,1774873840616,-500.0,0.00014743,2]
[419096345,1774873840626,-500.0,0.00014743,2]
[419096346,1774873840636,-500.0,0.00014743,2]
[419096348,1774873840646,-500.0,0.00014743,2]
[419096350,1774873840655,-500.0,0.00014743,2]
[419096351,1774873840665,-500.0,0.00014743,2]
[419096352,1774873840675,-500.0,0.00014743,2]
[419096353,1774873840684,-500.0,0.00014743,2]
[419096354,1774873840694,-150.0,0.00014743,2]
[419096355,1774873840703,-500.0,0.00014743,2]
[419096356,1774873840713,-151.88822773,0.00014743,2]
[419096357,1774873840722,-500.0,0.00014743,2]
[419096358,1774873840731,-363.79179548,0.00014743,2]
[419096359,1774873840741,-500.0,0.00014743,2]
[419096360,1774873840751,-500.0,0.00014743,2]
[419096361,1774873840761,-500.0,0.00014743,2]
[419096362,1774873840771,-500.0,0.00014743,2]
[419096363,1774873840780,-350.0,0.00014743,2]
[419096364,1774873840790,-500.0,0.00014743,2]
[419096365,1774873840800,-150.0,0.00014743,2]
[419096366,1774873840810,-500.0,0.00014743,2]
[419096367,1774873840820,-500.0,0.00014743,2]
[419096368,1774873840830,-500.0,0.00014743,2]
[419096369,1774873840840,-414.75876278,0.00014743,2]
[419096370,1774873840862,-85.24123722,0.00014743,2]
[419096371,1774873840871,-500.0,0.00014743,2]
[419096372,1774873840881,-431.14708622,0.00014743,2]
[419096374,1774873840930,-68.85291378,0.00014743,2]
[419096375,1774873840940,-500.0,0.00014743,2]
[419096376,1774873840949,-500.0,0.00014743,2]
[419096377,1774873840959,-372.25788509,0.00014743,2]
[419096378,1774873840968,-500.0,0.00014743,2]
[419096379,1774873840977,-78.80433468,0.00014743,2]
[419096380,1774873840988,-421.19566532,0.00014743,2]
[419096381,1774873840998,-78.80433468,0.00014743,2]
[419096395,1774873845823,-421.19566532,0.00014743,2]
[419096396,1774873845833,-500.0,0.00014743,2]
[419096397,1774873845843,-500.0,0.00014743,2]
[419096398,1774873845853,-500.0,0.00014743,2]
[419096399,1774873845863,-500.0,0.00014743,2]
[419096400,1774873845873,-337.54182457,0.00014743,2]
[419096401,1774873845886,-162.45817543,0.00014743,2]
[419096402,1774873845899,-500.0,0.00014743,2]
[419096403,1774873845909,-56.79181957,0.00014743,2]
[419096404,1774873845920,-443.20818043,0.00014743,2]
[419096405,1774873845930,-500.0,0.00014743,2]
[419096406,1774873845941,-23.38181957,0.00014743,2]
[419096407,1774873845953,-476.61818043,0.00014743,2]
[419096408,1774873845963,-500.0,0.00014743,2]
[419096409,1774873845973,-500.0,0.00014743,2]
[419096410,1774873845983,-500.0,0.00014743,2]
[419096411,1774873845993,-500.0,0.00014743,2]
[419096412,1774873846003,-500.0,0.00014743,2]
[419096413,1774873846013,-500.0,0.00014743,2]
[419096414,1774873846023,-500.0,0.00014743,2]
[419096415,1774873846032,-516.75057222,0.00014743,2]
[419096416,1774873846043,-500.0,0.00014743,2]
[419096417,1774873846053,-150.0,0.00014743,2]
[419096418,1774873846063,-500.0,0.00014743,2]
[419096419,1774873846072,-500.0,0.00014743,2]
[419096420,1774873846082,-500.0,0.00014743,2]
[419096421,1774873846093,-500.0,0.00014743,2]
[419096422,1774873846102,-500.0,0.00014743,2]
[419096423,1774873846112,-359.62142584,0.00014743,2]
[419096424,1774873846121,-150.0,0.00014743,2]
[419096425,1774873846131,-500.0,0.00014743,2]
[419096426,1774873846140,-500.0,0.00014743,2]
[419096427,1774873846150,-500.0,0.00014743,2]
[419096428,1774873846160,-500.0,0.00014743,2]
[419096429,1774873846170,-500.0,0.00014743,2]
[419096431,1774873846180,-500.0,0.00014743,2]
[419096432,1774873846189,-500.0,0.00014743,2]
[419096433,1774873846200,-500.0,0.00014743,2]
[419096434,1774873846209,-500.0,0.00014743,2]
[419096435,1774873846219,-500.0,0.00014743,2]
[419096436,1774873846229,-265.70159847,0.00014743,2]
[419096437,1774873846238,-500.0,0.00014743,2]
[419096438,1774873846248,-500.0,0.00014743,2]
[419096439,1774873846259,-500.0,0.00014743,2]
[419096440,1774873846269,-500.0,0.00014743,2]
[419096441,1774873846278,-500.0,0.00014743,2]
[419096442,1774873846288,-500.0,0.00014743,2]
[419096443,1774873846298,-500.0,0.00014743,2]
[419096444,1774873846308,-500.0,0.00014743,2]
[419096445,1774873846318,-500.0,0.00014743,2]
[419096446,1774873846328,-500.0,0.00014743,2]
[419096447,1774873846338,-500.0,0.00014743,2]
[419096448,1774873846348,-500.0,0.00014743,2]
[419096449,1774873846357,-500.0,0.00014743,2]
[419096450,1774873846367,-500.0,0.00014743,2]
[419096451,1774873846377,-500.0,0.00014743,2]
[419096452,1774873846389,-385.07155912,0.00014743,2]
[419096454,1774873846398,-604.44932814,0.00014743,2]
[419096456,1774873846409,-150.0,0.00014743,2]
[419096457,1774873846420,-500.0,0.00014743,2]
[419096459,1774873846429,-500.0,0.00014743,2]
[419096461,1774873846440,-500.0,0.00014743,2]
[419096463,1774873846449,-500.0,0.00014743,2]
[419096464,1774873846459,-500.0,0.00014743,2]
[419096465,1774873846468,-500.0,0.00014743,2]
[419096466,1774873846479,-500.0,0.00014743,2]
[419096467,1774873846488,-500.0,0.00014743,2]
[419096468,1774873846498,-500.0,0.00014743,2]
[419096469,1774873846510,-500.0,0.00014743,2]
[419096470,1774873846520,-500.0,0.00014743,2]
[419096471,1774873846529,-500.0,0.00014743,2]
[419096472,1774873846539,-500.0,0.00014743,2]
[419096473,1774873846549,-534.17456353,0.00014743,2]
[419096474,1774873846558,-150.0,0.00014743,2]
[419096475,1774873846568,-150.0,0.00014743,2]
[419096476,1774873846578,-204.22993374,0.00014743,2]
[419096477,1774873846588,-500.0,0.00014743,2]
[419096478,1774873846598,-500.0,0.00014743,2]
[419096479,1774873846607,-500.0,0.00014743,2]
[419096480,1774873846617,-500.0,0.00014743,2]
[419096481,1774873846627,-500.0,0.00014743,2]
[419096482,1774873846637,-532.7968878,0.00014743,2]
[419096483,1774873846648,-500.0,0.00014743,2]
[419096484,1774873846658,-500.0,0.00014743,2]
[419096485,1774873846667,-500.0,0.00014743,2]
[419096486,1774873846676,-500.0,0.00014743,2]
[419096487,1774873846686,-500.0,0.00014743,2]
[419096488,1774873846697,-500.0,0.00014743,2]
[419096489,1774873846708,-500.0,0.00014743,2]
[419096490,1774873846718,-500.0,0.00014743,2]
[419096491,1774873846727,-500.0,0.00014743,2]
[419096492,1774873846737,-608.25586307,0.00014743,2]
[419096493,1774873846747,-151.0,0.00014748,2]
[419096494,1774873846756,-166.66,0.00014887,2]
[419096495,1774873846767,-160.477024,0.00014887,2]
[419096496,1774873846777,-1600.0,0.00014897,2]
[419096497,1774873846787,-237.20016515,0.0001491,2]
[419096498,1774873846796,-1000.0,0.00014921,2]
[419096499,1774873846807,-150.0,0.00014933,2]
[419096500,1774873846817,-181.08010149,0.00014955,2]
[419096501,1774873846827,-915.0,0.00015,2]
[419096502,1774873846837,-5572.9151906,0.00015,7]
[419096503,1774873846851,-354.42310879,0.00015,7]
[419096504,1774873847365,-75.5683846,0.00015,7]
[419096505,1774873847377,-60.99823163,0.00015,7]
[419096506,1774873847388,-300.0,0.00015,2]
[419096507,1774873847399,-267.95,0.00015,2]
[419096508,1774873847408,-267.95,0.00015,2]
[419096509,1774873847419,-178.63,0.00015,3]
[419096510,1774873847429,-178.63,0.00015,3]
[419096511,1774873847439,-338.75677602,0.00015,2]
[419096512,1774873847448,-166.60365292,0.00015056,2]
[419096513,1774873847458,-417.93708253,0.00015068,2]
[419096514,1774873847470,-64.60291747,0.00015068,2]
[419096515,1774873847479,-516.93,0.00015068,2]
[419096516,1774873847488,-237.20016515,0.00015158,2]
[419096517,1774873847497,-500.0,0.00015177,2]
[419096518,1774873847507,-200.0,0.00015177,2]
[419096519,1774873847517,-151.0,0.00015187,2]
[419096520,1774873847526,-151.0,0.00015187,2]
[419096521,1774873847536,-150.0,0.00015199,2]
[419096522,1774873847545,-329.367551,0.00015199,2]
[419096523,1774873847555,-329.367551,0.00015199,2]
[419096524,1774873847565,-329.367551,0.00015199,2]
[419096525,1774873847575,-329.367551,0.00015199,2]
[419096526,1774873847586,-1000.0,0.00015199,2]
[419096527,1774873847597,-1000.0,0.00015199,2]
[419096528,1774873847607,-1000.0,0.00015199,2]
[419096529,1774873847617,-311.61540575,0.00015199,2]
[419096530,1774873847639,-688.38459425,0.00015199,2]
[419096531,1774873847651,-237.465076,0.00015199,2]
[419096532,1774873847661,-1000.0,0.00015199,2]
[419096533,1774873847670,-1000.0,0.00015199,2]
[419096534,1774873847680,-1000.0,0.00015199,2]
[419096535,1774873847690,-901.6611409,0.00015199,2]
[419096536,1774873847700,-151.0,0.00015199,2]
[419096537,1774873847710,-151.0,0.00015199,2]
[419096538,1774873847720,-702.3964,0.00015199,2]
[419096539,1774873847730,-160.477024,0.00015225,2]
[419096540,1774873847739,-1203.0,0.00015293,15]
[419096541,1774873847749,-177.508445,0.00015307,7]
[419096542,1774873847759,-175.4492,0.00015307,7]
[419096543,1774873847768,-166.66,0.00015334,2]
[419096544,1774873847778,-902.31297317,0.00015337,2]
[419096545,1774873847787,-163.761561,0.00015366,7]
[419096546,1774873847797,-166.523585,0.0001537,7]
[419096547,1774873847806,-160.0,0.0001537,7]
[419096548,1774873847815,-169.018482,0.00015371,7]
[419096549,1774873847826,-160.0,0.00015371,7]
[419096550,1774873847835,-702.39641,0.00015399,2]
[419096551,1774873847844,-237.20016515,0.00015405,2]
[419096552,1774873847854,-626.633,0.00015432,2]
[419096553,1774873847863,-251.59464626,0.00015468,2]
[419096554,1774873847872,-77.39490834,0.00015478,2]
[419096555,1774873847884,-89.20874458,0.00015478,2]
[419096556,1774873847894,-187.78006525,0.00015503,2]
[419096557,1774873847904,-167.09405497,0.00015507,2]
[419096558,1774873847916,-3832.90594503,0.00015507,2]
[419096559,1774873847925,-151.0,0.00015508,2]
[419096560,1774873847935,-1930.26,0.0001551,2]
[419096561,1774873847943,-209.19964138,0.0001551,2]
[419096562,1774873847953,-169.57542757,0.0001551,2]
[419096563,1774873847963,-196.78644426,0.0001551,2]
[419096564,1774873847972,-500.0,0.0001551,2]
[419096565,1774873847982,-153.7833768,0.0001551,2]
[419096566,1774873847992,-440.63033679,0.0001551,2]
[419096567,1774873848002,-500.0,0.0001551,2]
[419096568,1774873848011,-70213.80831906,0.00015511,2]
[419096569,1774873848021,-151.0,0.00015511,2]
[419096570,1774873848031,-329.367551,0.00015511,2]
[419096571,1774873848041,-329.367551,0.00015511,2]
[419096572,1774873848051,-329.367551,0.00015511,2]
[419096573,1774873848060,-329.367551,0.00015511,2]
[419096574,1774873848071,-151.0,0.00015511,2]
[419096575,1774873848080,-501.51244,0.00015511,2]
[419096576,1774873848089,-501.51244,0.00015511,2]
[419096577,1774873848099,-501.51244,0.00015511,2]
[419096578,1774873848109,-501.51244,0.00015511,2]
[419096579,1774873848119,-151.0,0.00015511,2]
[419096580,1774873848129,-151.0,0.00015511,2]
[419096581,1774873848138,-485.839713,0.00015511,2]
[419096582,1774873848149,-485.839713,0.00015511,2]
[419096583,1774873848159,-485.839713,0.00015511,2]
[419096584,1774873848168,-485.839713,0.00015511,2]
[419096585,1774873848178,-160.477024,0.00015562,2]
[419096586,1774873848187,-160.0,0.00015577,7]
[419096587,1774873848197,-702.39641,0.00015599,2]
[419096588,1774873848207,-150.04960437,0.000156,2]
[419096589,1774873848216,-166.49,0.00015605,2]
[419096590,1774873848225,-151.0,0.00015619,2]
[419096591,1774873848234,-151.0,0.00015619,2]
[419096592,1774873848244,-1263.913,0.00015619,2]
[419096593,1774873848253,-925.0,0.00015619,2]
[419096594,1774873848263,-1216.0,0.00015619,2]
[419096595,1774873848272,-1051.035,0.00015619,2]
[419096596,1774873848283,-1349.449,0.00015619,2]
[419096597,1774873848292,-237.20016515,0.00015653,2]
[419096598,1774873848302,-2000.0,0.0001568,2]
[419096599,1774873848312,-160.0,0.0001568,7]
[419096600,1774873848321,-2762.94,0.00015684,2]
[419096601,1774873848331,-1259.33,0.00015684,2]
[419096602,1774873848340,-1571.0,0.0001572,2]
[419096603,1774873848349,-516.93,0.00015753,2]
[419096604,1774873848359,-166.66,0.00015781,2]
[419096605,1774873848368,-168.0,0.00015787,2]
[419096606,1774873848378,-702.39641,0.00015799,2]
[419096607,1774873848388,-196.6548,0.000158,7]
[419096608,1774873848398,-202.83245802,0.00015873,2]
[419096609,1774873848407,-2000.0,0.0001589,2]
[419096610,1774873848417,-4000.0,0.00015895,2]
[419096611,1774873848426,-453.0,0.000159,2]
[419096612,1774873848435,-202.83245801,0.000159,2]
[419096613,1774873848444,-237.20016515,0.000159,2]
[419096614,1774873848454,-160.477024,0.000159,2]
[419096615,1774873848463,-166.6371911,0.000159,2]
[419096616,1774873848474,-166.60365292,0.000159,2]
[419096617,1774873848485,-192.25901704,0.000159,2]
[419096618,1774873848494,-500.0,0.00015973,2]
[419096619,1774873848504,-500.0,0.00015973,2]
[419096620,1774873848515,-500.0,0.00015973,2]
[419096621,1774873848525,-500.0,0.00015973,2]
[419096622,1774873848535,-452.97866013,0.00015973,2]
[419096623,1774873848544,-500.0,0.00015973,2]
[419096624,1774873848554,-500.0,0.00015973,2]
[419096625,1774873848564,-195.78200295,0.0001599,2]
[419096626,1774873848573,-151.0,0.00015996,2]
[419096627,1774873848583,-151.0,0.00015997,2]
[419096628,1774873848592,-1930.26,0.00015998,2]
[419096629,1774873848602,-1930.26,0.00015998,2]
[419096630,1774873848613,-1930.26,0.00015999,2]
[419096631,1774873848625,-1930.26,0.00015999,2]
[419096632,1774873848634,-1930.26,0.00015999,2]
[419096633,1774873848645,-1930.26,0.00015999,2]
[419096634,1774873848656,-1930.26,0.00015999,2]
[419096635,1774873848666,-1930.26,0.00015999,2]
[419096636,1774873848676,-1930.26,0.00015999,2]
[419096637,1774873848686,-1930.26,0.00015999,2]
[419096638,1774873848698,-1930.26,0.00015999,2]
[419096639,1774873848708,-1930.26,0.00015999,2]
[419096640,1774873848717,-1930.26,0.00015999,2]
[419096641,1774873848729,-1930.26,0.00015999,2]
[419096642,1774873848738,-1930.26,0.00015999,2]
[419096643,1774873848749,-1930.26,0.00015999,2]
[419096644,1774873848760,-1930.26,0.00015999,2]
[419096645,1774873848771,-1930.26,0.00015999,2]
[419096646,1774873848781,-1930.26,0.00015999,2]
[419096647,1774873848791,-1930.26,0.00015999,2]
[419096648,1774873848800,-1930.26,0.00015999,2]
[419096649,1774873848810,-1930.26,0.00015999,2]
[419096650,1774873848819,-1930.2712461,0.00015999,2]
[419096651,1774873848829,-2506.47,0.00015999,2]
[419096652,1774873848838,-2716.12,0.00015999,2]
[419096653,1774873848848,-151.0,0.00015999,2]
[419096654,1774873848858,-329.367551,0.00015999,2]
[419096655,1774873848868,-329.367551,0.00015999,2]
[419096656,1774873848877,-329.367551,0.00015999,2]
[419096657,1774873848887,-329.367551,0.00015999,2]
[419096658,1774873848897,-151.0,0.00015999,2]
[419096659,1774873848907,-702.39641,0.00015999,2]
[419096660,1774873848917,-501.51244,0.00015999,2]
[419096661,1774873848926,-501.51244,0.00015999,2]
[419096662,1774873848935,-501.51244,0.00015999,2]
[419096663,1774873848944,-501.51244,0.00015999,2]
[419096664,1774873848954,-151.0,0.00015999,2]
[419096665,1774873848963,-485.839713,0.00015999,2]
[419096666,1774873848972,-485.839713,0.00015999,2]
[419096667,1774873848981,-485.839713,0.00015999,2]
[419096668,1774873848990,-485.839713,0.00015999,2]
[419096669,1774873849000,-2493.52,0.00015999,2]
[419096670,1774873849010,-2701.15,0.00015999,2]
[419096671,1774873849019,-231.17169552,0.00015999,2]
[419096672,1774873849030,-500.0,0.00015999,2]
[419096673,1774873849039,-500.0,0.00015999,2]
[419096674,1774873849048,-500.0,0.00015999,2]
[419096675,1774873849058,-500.0,0.00015999,2]
[419096676,1774873849067,-500.0,0.00015999,2]
[419096677,1774873849076,-500.0,0.00015999,2]
[419096678,1774873849085,-500.0,0.00015999,2]
[419096679,1774873849095,-500.0,0.00015999,2]
[419096680,1774873849105,-544.94433639,0.00015999,2]
[419096681,1774873849115,-500.0,0.00015999,2]
[419096682,1774873849125,-500.0,0.00015999,2]
[419096683,1774873849136,-500.0,0.00015999,2]
[419096684,1774873849148,-549.22830276,0.00015999,2]
[419096685,1774873849157,-500.0,0.00015999,2]
[419096686,1774873849167,-550.0,0.00015999,2]
[419096687,1774873849176,-500.0,0.00015999,2]
[419096688,1774873849186,-319.52575724,0.00015999,2]
[419096689,1774873849196,-500.0,0.00015999,2]
[419096690,1774873849207,-500.0,0.00015999,2]
[419096691,1774873849216,-500.0,0.00015999,2]
[419096692,1774873849228,-500.0,0.00015999,2]
[419096693,1774873849237,-500.0,0.00015999,2]
[419096694,1774873849247,-500.0,0.00015999,2]
[419096695,1774873849257,-595.61343997,0.00015999,2]
[419096696,1774873849267,-3438.65673334,0.00016,2]
[419096697,1774873850669,-2078.31393325,0.00016,2]
[419096698,1774873850684,-910.07126,0.00016,2]
[419096699,1774873850700,-4294.03441302,0.00016,2]
[419096700,1774873850714,-1385.70004698,0.00016,2]
[419096701,1774873850724,-399.48050875,0.00016,2]
[419096704,1774874854095,167.12,6.657e-05,2]
[419096705,1774874854288,167.12,7.608e-05,2]
[419096706,1774874854487,167.12,8.559e-05,2]
[419096707,1774874962126,-167.12,9.51e-05,2]
[419096708,1774874962147,-167.12,0.00010461,2]
[419096709,1774874962167,-300.0,0.00011197,2]
[419096710,1774874962186,-600.0,0.00011198,2]
[419096711,1774874962204,-600.0,0.00011198,2]
[419096712,1774874962228,-600.0,0.00011198,2]
[419096713,1774874962248,-600.0,0.00011198,2]
[419096714,1774874962267,-600.0,0.00011198,2]
[419096715,1774874962287,-167.12,0.00011412,2]
[419096716,1774874962308,-689.98050833,0.00012243,2]
[419096717,1774874963126,-710.01949167,0.00012243,2]
[419096718,1774875031677,-167.12,0.00012363,2]
[419096719,1774875031688,-150.0,0.00012363,2]
[419096720,1774875031700,-600.0,0.00012664,2]
[419096721,1774875031712,-600.0,0.00012959,2]
[419096722,1774875031723,-600.0,0.00012959,2]
[419096723,1774875031735,-600.0,0.00012959,2]
[419096724,1774875031747,-4326.84,0.00012964,2]
[419096725,1774875031760,-109.30184371,0.00013,2]
[419096726,1774875031828,-140.69815629,0.00013,2]
[419096727,1774875031840,-150.0,0.000132,2]
[419096728,1774875031852,-174.632,0.00013266,2]
[419096729,1774875031865,-1655.925,0.00013266,2]
[419096730,1774875031876,-300.0,0.00013276,2]
[419096731,1774875031889,-1200.0,0.00013276,2]
[419096732,1774875031901,-4093.0,0.00013277,2]
[419096733,1774875031912,-167.12,0.00013314,2]
[419096734,1774875031925,-166.66,0.00013327,2]
[419096735,1774875031937,-155.38597979,0.000134,2]
[419096736,1774875031949,-168.74010454,0.000134,2]
[419096737,1774875031961,-67352.45459794,0.00013437,2]
[419096738,1774875031975,-865.37224422,0.00013437,2]
[419096739,1774875031990,-1154.38914939,0.00013437,2]
[419096740,1774875032016,-405.23147994,0.00013437,2]
[419096743,1774875037908,-11193.98425145,0.00013437,2]
[419096744,1774875037922,-1382.06179791,0.00013437,2]
[419096745,1774875038012,-1343.44849106,0.00013437,2]
[419096805,1774875040021,-2970.27792798,0.00013437,2]
[419096806,1774875040129,-1025.49280924,0.00013437,2]
[419096807,1774875040233,-8044.74851396,0.00013437,2]
[419096816,1774875043426,-1335.82403691,0.00013437,2]
[419096817,1774875043437,-1400.0,0.0001348,2]
[419096818,1774875043447,-166.60365292,0.00013499,2]
[419096819,1774875043457,-179.31231378,0.00013508,2]
[419096820,1774875043467,-152.03086484,0.00013508,2]
[419096821,1774875043477,-156101.86166663,0.00013537,2]
[419096829,1774875045799,-18973.74619042,0.00013537,2]
[419096830,1774875045811,-10590.19037893,0.00013537,2]
[419096831,1774875045852,-529.57114878,0.00013537,2]
[419096832,1774875045864,-323.42885122,0.00013537,2]
[419096836,1774875497867,157.0,0.000158,120]
[419096840,1774875746819,-450.0,0.00010791,2]
[419096841,1774875868847,1999.0,9e-05,2]
[419096842,1774875889525,6999.0,9e-05,2]
[419096843,1774876032128,-90.0,0.00010791,2]
[419096844,1774876032156,-124.61599186,0.00011149,2]
[419096845,1774876145275,-475.38400814,0.00011149,2]
[419096846,1774876147076,-988.29,0.00011507,2]
[419096847,1774876147098,-150.0,0.00011654,2]
[419096848,1774876147122,-600.0,0.00011852,2]
[419096849,1774876147145,-600.0,0.00011852,2]
[419096850,1774876147167,-300.0,0.00011869,2]
[419096851,1774876147189,-1200.0,0.00011869,2]
[419096852,1774876147212,-300.0,0.00011869,2]
[419096853,1774876147234,-300.0,0.00011869,2]
[419096854,1774876147255,-600.0,0.0001187,2]
[419096855,1774876147277,-2168.9323359,0.00012264,2]
[419096856,1774876148601,600.0,0.00012264,2]
[419096857,1774876148786,600.0,0.00011328,2]
[419096858,1774876148889,600.0,0.00011606,2]
[419096859,1774876148981,600.0,0.00011606,2]
[419096860,1774876149084,600.0,0.00011606,2]
[419096861,1774876208395,3162.726632,9.5e-05,3]
[419096862,1774876208418,2303.94038586,9.5e-05,3]
[419096880,1774876231881,-1407.06176575,9.5e-05,3]
[419096882,1774876231988,-83571.27489619,9.5e-05,3]
[419096883,1774876231997,-309.71397811,0.000125,2]
[419096884,1774876232007,-302.0,0.000125,2]
[419096885,1774876232017,-600.0,0.00012684,2]
[419096886,1774876232027,-563.80060104,0.00012867,2]
[419096887,1774876232036,-2677.78046068,0.0001288,2]
[419096888,1774876232048,-2468.51953932,0.0001288,2]
[419096889,1774876232058,-600.0,0.00013024,2]
[419096890,1774876232067,-600.0,0.00013024,2]
[419096896,1774876232662,-600.0,0.00013024,2]
[419096897,1774876232679,-179.31231377,0.00013434,2]
[419096898,1774876232688,-1200.0,0.00013438,2]
[419096899,1774876232698,-151.0,0.00013439,2]
[419096900,1774876232707,-151.0,0.00013439,2]
[419096901,1774876232717,-151.0,0.00013439,2]
[419096902,1774876232726,-151.0,0.00013439,2]
[419096903,1774876232736,-151.0,0.00013439,2]
[419096904,1774876232746,-151.0,0.00013439,2]
[419096905,1774876232756,-151.0,0.00013439,2]
[419096906,1774876232765,-151.0,0.00013439,2]
[419096907,1774876232775,-151.0,0.00013439,2]
[419096908,1774876232784,-151.0,0.00013439,2]
[419096909,1774876232793,-151.0,0.00013439,2]
[419096910,1774876232802,-8368.3110743,0.00013447,2]
[419096911,1774876232812,-12623.5610319,0.00013447,2]
[419096912,1774876232857,-691.60151792,0.00013447,2]
[419096913,1774876232899,-2666.33773602,0.00013447,2]
[419096914,1774876238295,-678.69,0.00013447,2]
[419096915,1774876238331,-961.22551103,0.00013447,2]
[419096962,1774876240304,-621.86898814,0.00013447,2]
[419096963,1774876240411,-1393.20373301,0.00013447,2]
[419096964,1774876241012,-341.77167062,0.00013447,2]
[419096965,1774876241025,-568.9,0.00013447,2]
[419096996,1774876243293,-485.57455025,0.00013447,2]
[419096997,1774876243305,-159761.66831501,0.00013447,2]
[419096998,1774876243315,-151.0,0.00013534,2]
[419096999,1774876243325,-249.52589237,0.00013537,2]
[419097000,1774876243335,-163.0,0.00013537,3]
[419097001,1774876243345,-166.0,0.00013537,3]
[419097002,1774876243355,-327.14,0.00013587,2]
[419097003,1774876243365,-166.66,0.00013608,2]
[419097004,1774876243375,-364.23,0.00013643,2]
[419097005,1774876243384,-160.0,0.00013681,2]
[419097006,1774876243399,-160.0,0.00013681,2]
[419097007,1774876243410,-749.71,0.00013689,2]
[419097008,1774876243421,-1600.0,0.00013697,2]
[419097009,1774876243432,-294.33,0.00013699,2]
[419097010,1774876243444,-166.48,0.00013749,2]
[419097011,1774876243455,-300.0,0.0001375,2]
[419097012,1774876243465,-300.0,0.0001375,2]
[419097013,1774876243476,-300.0,0.0001375,2]
[419097014,1774876243488,-300.0,0.0001375,2]
[419097015,1774876243498,-300.0,0.0001375,2]
[419097016,1774876243509,-2500.0,0.0001375,2]
[419097017,1774876243519,-2500.0,0.0001375,2]
[419097018,1774876243529,-2500.0,0.0001375,2]
[419097019,1774876243542,-2500.0,0.0001375,2]
[419097020,1774876243552,-2500.0,0.0001375,2]
[419097021,1774876243562,-600.0,0.0001375,2]
[419097022,1774876243572,-413.8,0.00013803,2]
[419097023,1774876243583,-3240.0,0.0001384,2]
[419097024,1774876243593,-14743.388235,0.00013845,2]
[419097084,1774876251462,-778.751765,0.00013845,2]
[419097085,1774876251471,-166.66,0.00013889,2]
[419097086,1774876251480,-150.0,0.00013911,2]
[419097087,1774876251490,-150.0,0.000141,2]
[419097088,1774876251499,-500.0,0.00014169,2]
[419097089,1774876251508,-500.0,0.00014169,2]
[419097090,1774876251517,-500.0,0.00014169,2]
[419097091,1774876251526,-500.0,0.00014169,2]
[419097092,1774876251535,-500.0,0.00014169,2]
[419097093,1774876251544,-166.66,0.00014169,2]
[419097094,1774876251554,-500.0,0.00014311,2]
[419097095,1774876251563,-294.33,0.00014384,2]
[419097096,1774876251572,-511.53,0.00014386,2]
[419097097,1774876251581,-1500.0,0.00014407,2]
[419097098,1774876251591,-166.66,0.0001445,2]
[419097099,1774876251600,-721.63355569,0.00014534,2]
[419097100,1774876251611,-1278.36644431,0.00014534,2]
[419097101,1774876251620,-500.0,0.00014534,2]
[419097102,1774876251630,-500.0,0.00014534,2]
[419097103,1774876251639,-500.0,0.00014534,2]